bitfinex/quotes_SOLUSD_20250201
["timestamp","ask_amount","ask_price","bid_price","bid_amount"]
[1738391932620,23.74999815,231.41,231.4,0.0001]
[1738391934524,22.69163865,231.41,231.4,0.0001]
[1738391941727,9.27979012,231.41,231.4,0.0001]
[1738391942034,8.67281051,231.41,231.4,0.0001]
[1738391942910,22.08465904,231.41,231.4,0.0001]
[1738391943209,22.69163865,231.41,231.4,0.0001]
[1738391945648,0.063,231.41,231.4,0.0001]
[1738391948747,0.063,231.41,231.4,8.60991051]
[1738391951052,0.063,231.41,231.4,0.0001]
[1738391952044,8.67281051,231.41,231.4,0.0001]
[1738391952827,9.27979012,231.41,231.4,0.0001]
[1738391953929,22.69163865,231.41,231.4,0.0001]
[1738391957050,22.69163865,231.41,231.35,0.03]
[1738391957235,8.60981051,231.36,231.35,0.03]
[1738391967461,8.60981051,231.36,231.29,8.61160763]
[1738391968158,8.60981051,231.35,231.29,0.00179712]
[1738391969159,8.60981051,231.33,231.29,0.00179712]
[1738391969951,8.60981051,231.32,231.29,0.00179712]
[1738391971044,8.60981051,231.33,231.29,0.00179712]
[1738391972969,8.60981051,231.34,231.29,0.00179712]
[1738391978250,0.60697961,231.33,231.29,0.00179712]
[1738391979269,9.21679012,231.34,231.29,0.00179712]
[1738391979668,8.60981051,231.34,231.29,0.00179712]
[1738391981067,82.6,231.33,231.29,0.00179712]
[1738391984470,82.663,231.33,231.29,0.00179712]
[1738392006912,8.60981051,231.32,231.29,0.00179712]
[1738392012902,82.663,231.33,231.29,0.00179712]
[1738392013527,8.60981051,231.32,231.29,0.00179712]
[1738392014228,8.60981051,231.3,231.29,0.00179712]
[1738392014994,9.21679012,231.3,231.29,0.00179712]
[1738392015598,29.26463865,231.3,231.29,0.00179712]
[1738392021814,15.85279012,231.3,231.29,0.00179712]
[1738392022818,29.26463865,231.3,231.29,0.00179712]
[1738392025708,30.99593865,231.3,231.29,0.00179712]
[1738392031234,31.05893865,231.3,231.29,0.00179712]
[1738392036340,17.64709012,231.3,231.29,0.00179712]
[1738392036529,9.27979012,231.3,231.29,0.00179712]
[1738392039433,22.69163865,231.3,231.29,0.00179712]
[1738392040609,9.27979012,231.3,231.29,0.00179712]
[1738392045739,22.69163865,231.3,231.29,0.00179712]
[1738392048540,23.69163865,231.3,231.29,0.00179712]
[1738392052118,13.41184853,231.29,231.2,0.03]
[1738392052321,8.60981051,231.21,231.2,0.03]
[1738392053743,8.60981051,231.22,231.2,0.03]
[1738392055529,0.60697961,231.21,231.2,0.03]
[1738392056729,13.41184853,231.2,231.18,0.03]
[1738392056941,22.62863865,231.19,231.18,0.03]
[1738392062956,9.21679012,231.19,231.18,0.03]
[1738392064943,82.6,231.2,231.18,0.03]
[1738392065252,91.81679012,231.2,231.18,0.03]
[1738392065447,91.20981051,231.2,231.18,0.03]
[1738392066057,9.21679012,231.19,231.18,0.03]
[1738392068252,22.62863865,231.19,231.11,0.03]
[1738392068457,8.60981051,231.18,231.11,0.03]
[1738392088664,8.67281051,231.18,231.11,0.03]
[1738392092250,22.08465904,231.18,231.17,0.0001]
[1738392095974,13.41184853,231.17,231.16,0.0001]
[1738392096270,14.01882814,231.17,231.16,0.0001]
[1738392104780,13.44814239,231.17,231.16,0.0001]
[1738392111583,13.51114239,231.17,231.16,0.0001]
[1738392124302,14.41184853,231.15,231.11,0.0001]
[1738392124510,22.02165904,231.12,231.11,0.0001]
[1738392124795,14.41184853,231.11,230.97,1.5145]
[1738392124998,13.41184853,231.09,230.97,1.5145]
[1738392125200,13.41184853,231.07,230.97,1.5145]
[1738392125400,14.01882814,231.06,230.97,1.5145]
[1738392125580,9.21679012,231.06,230.97,1.5145]
[1738392125784,8.60981051,231.06,230.98,8.60981051]
[1738392126392,8.60981051,231.08,231.0,8.60981051]
[1738392128007,8.60981051,231.1,231.03,8.60981051]
[1738392128184,9.21679012,231.12,231.04,8.60981051]
[1738392128390,9.21679012,231.12,231.04,10.12431051]
[1738392130081,8.60981051,231.11,231.04,1.5145]
[1738392130299,9.21679012,231.1,231.04,1.5145]
[1738392130480,8.60981051,231.09,231.04,1.5145]
[1738392130684,8.60981051,231.11,231.04,1.5145]
[1738392131999,8.60981051,231.12,231.04,10.12431051]
[1738392132224,8.60981051,231.13,231.05,8.63981051]
[1738392132501,8.60981051,231.14,231.06,8.60981051]
[1738392132684,0.60697961,231.13,231.06,8.60981051]
[1738392133090,1.6557,231.17,231.08,8.60981051]
[1738392133091,8.60981051,231.15,231.08,8.60981051]
[1738392133489,9.27979012,231.17,231.05,0.03]
[1738392133798,8.60981051,231.16,231.08,8.60981051]
[1738392134002,8.60981051,231.14,231.07,8.60981051]
[1738392134478,8.60981051,231.15,231.07,8.60981051]
[1738392134681,8.60981051,231.16,231.08,8.60981051]
[1738392135501,8.60981051,231.15,231.07,8.60981051]
[1738392136907,8.60981051,231.13,231.05,8.63981051]
[1738392142315,8.60981051,231.11,231.05,0.03]
[1738392149728,13.47484853,231.16,231.05,0.03]
[1738392149729,8.60981051,231.09,231.05,0.03]
[1738392150238,8.60981051,231.07,231.05,0.03]
[1738392156355,0.60697961,231.06,231.05,0.03]
[1738392156853,8.60981051,231.07,231.05,0.03]
[1738392157638,8.52328219,231.07,231.05,0.03]
[1738392160617,0.60697961,231.06,231.05,0.03]
[1738392160852,8.52328219,231.07,231.05,0.03]
[1738392161556,0.60697961,231.06,231.05,0.03]
[1738392164856,0.60697961,231.06,231.05,0.0001]
[1738392168940,14.01882814,231.06,231.05,0.0001]
[1738392169257,22.62863865,231.06,231.05,0.0001]
[1738392172151,22.69163865,231.06,231.05,0.0001]
[1738392172532,9.27979012,231.06,231.05,0.0001]
[1738392172732,0.66997961,231.06,231.05,0.0001]
[1738392173334,9.27979012,231.06,231.05,0.0001]
[1738392182989,0.063,231.06,231.05,0.0001]
[1738392183152,0.063,231.06,231.05,8.60991051]
[1738392183359,0.063,231.06,231.05,0.0001]
[1738392183757,8.67281051,231.06,231.05,0.0001]
[1738392184446,0.063,231.06,231.05,0.0001]
[1738392194564,8.67281051,231.06,231.05,0.0001]
[1738392196378,22.08465904,231.06,231.05,0.0001]
[1738392202280,8.67281051,231.06,231.05,0.0001]
[1738392202485,0.063,231.06,231.05,0.0001]
[1738392202670,0.66997961,231.06,231.05,0.0001]
[1738392206865,0.063,231.06,231.05,0.0001]
[1738392207579,0.063,231.06,231.01,8.10991051]
[1738392208184,0.063,231.06,231.05,0.03]
[1738392212693,0.063,231.06,231.05,8.63981051]
[1738392217097,0.063,231.06,231.05,0.03]
[1738392222200,13.47484853,231.06,231.05,0.03]
[1738392222593,0.063,231.06,231.05,0.03]
[1738392232994,0.063,231.06,231.05,8.63981051]
[1738392236310,0.063,231.06,231.05,0.03]
[1738392259647,10.33731051,231.06,231.05,0.03]
[1738392259833,10.94429012,231.06,231.05,0.03]
[1738392261524,24.35613865,231.06,231.05,0.03]
[1738392262435,32.96594865,231.06,231.05,0.03]
[1738392264151,32.96594865,231.06,231.05,0.0001]
[1738392266146,13.41184853,231.05,231.01,0.0001]
[1738392266344,22.02165904,231.02,231.01,0.0001]
[1738392266649,28.80883865,231.02,231.01,0.0001]
[1738392271154,137.2999,231.0,230.94,0.03]
[1738392271340,13.41184853,230.97,230.94,0.03]
[1738392271545,14.01882814,230.97,230.94,0.03]
[1738392272247,13.41184853,230.97,230.94,0.03]
[1738392272735,0.60697961,230.96,230.94,0.03]
[1738392273047,14.01882814,230.97,230.94,0.03]
[1738392276954,8.60981051,230.99,230.94,0.03]
[1738392277145,0.60697961,230.98,230.94,0.03]
[1738392277668,13.41184853,230.97,230.94,0.03]
[1738392277848,0.60697961,230.98,230.94,0.03]
[1738392278642,0.60697961,230.98,230.92,8.58328218]
[1738392279274,13.41184853,230.98,230.92,8.58328218]
[1738392279671,9.21679012,230.99,230.92,8.58328218]
[1738392279840,8.60981051,230.99,230.94,0.03]
[1738392280241,22.02165904,231.0,230.94,0.03]
[1738392280667,8.60981051,230.99,230.94,0.03]
[1738392281454,9.21679012,230.99,230.94,0.03]
[1738392281765,13.41184853,230.98,230.94,0.03]
[1738392284156,13.41184853,230.96,230.94,0.03]
[1738392285437,14.01882814,230.95,230.94,0.03]
[1738392295150,22.62863865,230.95,230.94,0.03]
[1738392295873,22.62863914,230.95,230.94,0.03]
[1738392296068,8.609811,230.95,230.94,0.03]
[1738392296268,0.063,230.96,230.94,0.03]
[1738392302874,0.66997961,230.96,230.94,0.03]
[1738392303056,8.60981051,230.95,230.94,0.03]
[1738392303880,9.27979012,230.96,230.94,0.03]
[1738392304091,13.41184853,230.95,230.94,0.03]
[1738392304463,9.27979012,230.96,230.94,0.03]
[1738392305165,8.67281051,230.96,230.94,0.03]
[1738392307182,13.47484853,230.96,230.94,0.03]
[1738392307558,22.08465904,230.96,230.94,0.03]
[1738392310283,13.47484853,230.96,230.94,0.03]
[1738392311680,0.063,230.96,230.94,0.03]
[1738392316494,0.063,230.96,230.95,8.60981051]
[1738392328179,0.063,230.96,230.95,9.60981051]
[1738392328787,0.063,230.96,230.95,13.93971051]
[1738392334699,0.063,230.96,230.95,9.60981051]
[1738392334910,0.063,230.96,230.95,8.60981051]
[1738392337385,0.063,230.96,230.94,8.63981051]
[1738392338805,0.063,230.96,230.94,0.03]
[1738392345092,8.60981051,230.95,230.94,0.03]
[1738392345816,0.063,230.96,230.94,0.03]
[1738392350019,8.67281051,230.96,230.94,0.03]
[1738392353716,23.60955904,230.95,230.94,0.03]
[1738392356005,24.21653865,230.95,230.94,0.0001]
[1738392356210,13.41184853,230.94,230.92,0.0001]
[1738392356413,13.41184853,230.94,230.77,0.03]
[1738392356414,14.99974853,230.92,230.77,0.03]
[1738392356622,8.60981051,230.8,230.77,0.03]
[1738392356916,5.91205283,230.83,230.77,0.03]
[1738392357123,11.0804547,230.8,230.77,0.03]
[1738392357510,11.0804547,230.8,230.73,8.13981051]
[1738392357511,13.77821238,230.8,230.73,8.13981051]
[1738392357711,13.41184853,230.81,230.75,8.60981051]
[1738392358207,8.60981051,230.82,230.75,8.60981051]
[1738392358415,13.41184853,230.83,230.81,8.60981051]
[1738392358927,14.63561805,230.84,230.8,8.60981051]
[1738392359098,14.63561805,230.84,230.81,8.60981051]
[1738392359504,14.63561805,230.84,230.8,8.60981051]
[1738392359804,14.63561805,230.84,230.79,8.60981051]
[1738392360019,14.63561805,230.84,230.82,8.60981051]
[1738392360407,14.63561805,230.84,230.81,8.60981051]
[1738392360719,10.19771051,230.91,230.83,8.60981051]
[1738392360925,1.5879,230.91,230.85,8.60981051]
[1738392362303,13.41184853,230.9,230.84,8.60981051]
[1738392362713,10.19771051,230.91,230.84,8.60981051]
[1738392362916,1.5879,230.91,230.85,8.60981051]
[1738392363804,10.19771051,230.91,230.84,8.60981051]
[1738392365232,1.5879,230.91,230.84,8.60981051]
[1738392365450,8.60981051,230.86,230.79,8.60981051]
[1738392365933,8.60981051,230.85,230.78,8.60981051]
[1738392366309,8.60981051,230.86,230.78,8.60981051]
[1738392366927,8.60981051,230.85,230.78,8.60981051]
[1738392367341,8.60981051,230.82,230.75,8.60981051]
[1738392368015,8.60981051,230.81,230.74,8.60981051]
[1738392368417,8.60981051,230.82,230.75,8.60981051]
[1738392368611,8.60981051,230.83,230.75,8.60981051]
[1738392368835,13.41184853,230.82,230.76,8.60981051]
[1738392370916,8.60981051,230.84,230.77,8.60981051]
[1738392371114,1.5879,230.91,230.73,8.60981051]
[1738392371115,22.02165904,230.8,230.73,8.60981051]
[1738392371458,23.60955904,230.8,230.72,8.60981051]
[1738392372320,8.60981051,230.78,230.71,8.60981051]
[1738392372728,13.41184853,230.78,230.72,8.60981051]
[1738392373845,13.41184853,230.78,230.73,8.60981051]
[1738392374730,13.41184853,230.78,230.72,8.63981051]
[1738392375521,13.41184853,230.78,230.72,0.03]
[1738392376244,13.41184853,230.78,230.73,8.60981051]
[1738392376651,10.19771051,230.8,230.72,0.03]
[1738392376652,1.5879,230.8,230.75,8.60981051]
[1738392376825,1.5879,230.8,230.74,8.60981051]
[1738392377721,8.60981051,230.79,230.72,0.03]
[1738392378930,13.41184853,230.78,230.72,0.03]
[1738392380137,8.60981051,230.77,230.72,0.03]
[1738392380334,8.60981051,230.73,230.72,0.03]
[1738392380648,22.02165904,230.73,230.72,0.03]
[1738392380848,29.94845904,230.73,230.72,0.03]
[1738392381223,29.94845904,230.73,230.72,0.0001]
[1738392389833,13.41184853,230.72,230.68,0.03]
[1738392390065,22.02165904,230.69,230.68,0.03]
[1738392393152,8.60981051,230.69,230.6,30.0]
[1738392393449,8.60981051,230.63,230.6,30.0]
[1738392393863,13.41184853,230.62,230.6,30.0]
[1738392394042,22.02165904,230.61,230.6,30.0]
[1738392395133,13.41184853,230.61,230.6,30.0]
[1738392400356,8.60981051,230.63,230.6,30.0]
[1738392400669,8.60981051,230.65,230.6,30.0]
[1738392401178,13.41184853,230.64,230.6,30.0]
[1738392401541,6.4534,230.68,230.6,38.60981051]
[1738392401741,10.15311051,230.69,230.6,38.63981051]
[1738392402065,13.41184853,230.68,230.6,38.63981051]
[1738392402573,13.41184853,230.68,230.62,8.60981051]
[1738392403334,8.67281051,230.69,230.62,8.60981051]
[1738392403674,0.063,230.69,230.62,8.60981051]
[1738392404167,0.063,230.69,230.68,8.60981051]
[1738392404657,0.063,230.69,230.64,8.60981051]
[1738392404861,0.063,230.69,230.62,8.60981051]
[1738392405039,8.60981051,230.68,230.6,38.63981051]
[1738392407355,8.60981051,230.66,230.6,30.03]
[1738392407554,13.41184853,230.65,230.6,30.03]
[1738392411157,8.60981051,230.64,230.6,30.03]
[1738392411352,13.41184853,230.63,230.6,30.03]
[1738392413862,13.41184853,230.61,230.6,30.03]
[1738392415478,13.41184853,230.61,230.6,30.0]
[1738392421806,8.60981051,230.66,230.6,30.0]
[1738392421997,13.41184853,230.65,230.6,30.0]
[1738392423391,13.41184853,230.63,230.6,30.0]
[1738392425767,13.41184853,230.63,230.6,30.03]
[1738392426167,8.60981051,230.62,230.6,30.03]
[1738392428191,14.01882814,230.61,230.6,30.03]
[1738392428987,14.01882814,230.61,230.6,20.8562]
[1738392429179,14.01882814,230.61,230.6,19.0215]
[1738392429382,14.01882814,230.61,230.6,15.3521]
[1738392430473,22.62863865,230.61,230.6,15.3521]
[1738392432691,37.98073865,230.61,230.6,15.3521]
[1738392433488,39.60443865,230.61,230.6,15.3521]
[1738392435412,37.98073865,230.61,230.6,15.3521]
[1738392436101,37.98073865,230.61,230.52,0.1100111]
[1738392436285,13.41184853,230.58,230.52,0.1100111]
[1738392436796,13.41184853,230.58,230.49,8.21982161]
[1738392436997,13.41184853,230.58,230.5,8.60981051]
[1738392437496,13.41184853,230.58,230.52,8.60981051]
[1738392439086,8.60981051,230.61,230.52,8.60981051]
[1738392439980,13.41184853,230.6,230.52,8.60981051]
[1738392440301,13.41184853,230.58,230.52,8.60981051]
[1738392443193,22.02165904,230.61,230.52,8.60981051]
[1738392446113,13.41184853,230.58,230.5,8.60981051]
[1738392446314,9.21679012,230.57,230.48,8.60981051]
[1738392447215,8.60981051,230.57,230.48,8.60981051]
[1738392448899,13.41184853,230.54,230.48,8.60981051]
[1738392449093,13.41184853,230.52,230.44,8.60981051]
[1738392449511,13.41184853,230.52,230.46,8.60981051]
[1738392449822,13.41184853,230.52,230.48,0.03]
[1738392450388,8.60981051,230.55,230.48,0.03]
[1738392450607,10.15791051,230.57,230.48,8.63981051]
[1738392451312,8.60981051,230.59,230.5,8.60981051]
[1738392451517,8.60981051,230.61,230.52,8.60981051]
[1738392452518,13.41184853,230.6,230.52,8.60981051]
[1738392453187,13.41184853,230.58,230.52,8.60981051]
[1738392453606,13.41184853,230.58,230.48,0.03]
[1738392453607,13.41184853,230.56,230.5,8.60981051]
[1738392454800,8.60981051,230.59,230.5,8.60981051]
[1738392456121,8.60981051,230.61,230.52,8.60981051]
[1738392456420,13.41184853,230.6,230.52,8.60981051]
[1738392463337,13.47484853,230.6,230.52,8.60981051]
[1738392463825,13.47484853,230.6,230.56,8.60981051]
[1738392463826,0.063,230.6,230.56,8.60981051]
[1738392464032,0.063,230.6,230.58,8.60981051]
[1738392464243,0.063,230.6,230.59,1.0]
[1738392464425,0.063,230.68,230.61,1.0]
[1738392464734,0.063,230.68,230.67,8.60981051]
[1738392469365,0.063,230.68,230.64,8.60981051]
[1738392469549,0.063,230.68,230.63,8.60981051]
[1738392470053,0.063,230.68,230.64,8.60981051]
[1738392470553,0.063,230.68,230.65,8.60981051]
[1738392471358,0.063,230.68,230.66,8.60981051]
[1738392472467,0.063,230.68,230.67,8.60981051]
[1738392481970,0.063,230.68,230.67,10.25991199]
[1738392482547,0.063,230.69,230.68,5.335]
[1738392483458,0.063,230.78,230.71,1.0]
[1738392483654,0.063,230.78,230.77,8.60981051]
[1738392484751,0.063,230.78,230.77,12.94311051]
[1738392484958,7.9673,230.9,230.8,1.0]
[1738392485273,1.6048,230.9,230.86,8.60981051]
[1738392485958,1.6048,230.9,230.88,8.60981051]
[1738392486153,1.6048,230.9,230.86,8.60981051]
[1738392486371,1.6048,230.9,230.84,8.60981051]
[1738392487854,1.6048,230.9,230.86,8.60981051]
[1738392490782,1.6048,230.9,230.85,8.60981051]
[1738392494100,0.063,230.92,230.87,8.60981051]
[1738392494265,0.063,230.92,230.89,8.60981051]
[1738392494601,0.063,230.92,230.91,8.60981051]
[1738392496180,0.063,230.92,230.91,9.60981051]
[1738392496470,0.063,230.92,230.91,8.60981051]
[1738392499093,0.063,230.92,230.91,9.60981051]
[1738392499284,0.063,230.92,230.91,31.26075904]
[1738392499601,0.063,230.96,230.95,20.0]
[1738392499801,0.063,230.96,230.95,20.64918367]
[1738392500097,0.063,230.96,230.95,29.25899418]
[1738392501794,0.063,230.96,230.95,34.14690067]
[1738392502294,0.063,230.96,230.95,13.497717]
[1738392503201,0.063,230.96,230.93,13.497717]
[1738392503584,0.063,230.96,230.95,13.497717]
[1738392504577,0.063,230.96,230.95,15.14696101]
[1738392505402,0.063,230.96,230.95,14.497717]
[1738392505599,0.063,230.96,230.95,13.497717]
[1738392508106,0.063,230.96,230.92,13.497717]
[1738392508281,0.063,230.96,230.89,13.497717]
[1738392509731,13.560717,230.96,230.88,13.497717]
[1738392509885,13.497717,230.95,230.87,13.497717]
[1738392510219,13.497717,230.95,230.88,13.497717]
[1738392510389,20.162017,230.94,230.87,13.497717]
[1738392510593,6.6643,230.94,230.88,13.497717]
[1738392511096,6.6643,230.94,230.87,13.497717]
[1738392511716,20.162017,230.94,230.86,13.497717]
[1738392511917,15.036017,230.93,230.85,13.497717]
[1738392512083,15.036017,230.93,230.83,13.497717]
[1738392512084,13.41184853,230.9,230.83,13.497717]
[1738392512283,13.497717,230.88,230.81,13.497717]
[1738392513029,13.497717,230.89,230.82,13.497717]
[1738392513217,13.497717,230.88,230.8,13.497717]
[1738392513423,13.497717,230.89,230.81,13.497717]
[1738392513625,13.497717,230.9,230.82,13.497717]
[1738392514510,14.01882814,230.92,230.87,13.497717]
[1738392514511,13.41184853,230.92,230.87,13.497717]
[1738392514706,1.5383,230.93,230.78,1.0]
[1738392514707,1.5383,230.93,230.88,13.497717]
[1738392516501,26.90956553,230.92,230.84,13.497717]
[1738392516707,13.497717,230.91,230.83,13.497717]
[1738392517330,13.41184853,230.9,230.83,13.497717]
[1738392518051,13.41184853,230.9,230.85,13.497717]
[1738392518337,15.036017,230.93,230.85,13.497717]
[1738392519028,1.5383,230.93,230.87,13.497717]
[1738392521746,1.5383,230.93,230.87,12.95742153]
[1738392523766,1.5383,230.93,230.89,13.497717]
[1738392525230,1.5383,230.93,230.87,13.527717]
[1738392528335,1.5383,230.93,230.87,0.03]
[1738392529754,1.5383,230.93,230.87,13.527717]
[1738392535655,1.6013,230.93,230.87,13.527717]
[1738392537764,1.6013,230.93,230.87,8.67859215]
[1738392539239,1.6013,230.93,230.89,8.64859215]
[1738392539579,0.063,230.93,230.89,8.64859215]
[1738392539768,0.063,230.93,230.91,8.64859215]
[1738392540668,0.063,230.93,230.92,8.64859215]
[1738392544953,0.063,230.93,230.92,9.29793237]
[1738392547683,0.063,230.93,230.91,8.64859215]
[1738392547855,0.063,230.93,230.92,8.64859215]
[1738392579109,0.063,230.93,230.92,12.97909215]
[1738392580410,0.063,230.93,230.92,27.39094068]
[1738392583120,0.063,230.93,230.92,28.39094068]
[1738392583422,0.063,230.93,230.92,29.0401948]
[1738392587619,0.063,230.96,230.95,20.0]
[1738392587811,0.063,231.02,231.01,8.64859215]
[1738392599140,0.063,231.08,231.04,20.0]
[1738392599318,0.063,231.08,231.05,0.648983]
[1738392600025,0.063,231.08,231.05,20.648983]
[1738392600351,0.063,231.08,231.05,42.70942368]
[1738392600663,0.063,231.08,231.05,43.70942368]
[1738392600823,0.063,231.08,231.07,8.64859215]
[1738392601033,0.063,231.08,231.07,16.5850521]
[1738392601420,0.063,231.11,231.07,17.5850521]
[1738392601638,0.063,231.11,231.1,8.64859215]
[1738392601829,0.063,231.11,231.1,9.29743658]
[1738392602725,0.063,231.11,231.1,43.89180518]
[1738392602941,0.063,231.11,231.1,9.29743658]
[1738392606639,0.063,231.11,231.1,8.64859215]
[1738392606838,0.063,231.11,231.07,8.64859215]
[1738392607748,0.063,231.11,231.08,8.64859215]
[1738392609149,0.063,231.11,231.09,8.64859215]
[1738392610531,0.063,231.11,231.1,8.64859215]
[1738392612943,0.063,231.11,231.1,56.65480928]
[1738392613934,0.063,231.11,231.1,57.65480928]
[1738392615950,0.063,231.16,231.11,18.73874853]
[1738392616254,0.063,231.16,231.15,8.64859215]
[1738392617355,0.063,231.16,231.15,9.29727338]
[1738392618152,0.063,231.16,231.15,22.70912191]
[1738392618342,0.063,231.16,231.15,23.70912191]
[1738392619357,0.063,231.18,231.16,13.41184853]
[1738392619557,0.063,231.18,231.16,29.34644068]
[1738392623652,0.063,231.26,231.18,13.41184853]
[1738392623868,0.063,231.26,231.25,8.64859215]
[1738392624863,0.063,231.26,231.25,9.29695353]
[1738392625177,0.063,231.26,231.25,22.70880206]
[1738392625345,0.063,231.26,231.25,23.70880206]
[1738392625532,0.063,231.3,231.29,8.64859215]
[1738392625733,0.063,231.3,231.29,9.29688434]
[1738392626353,0.063,231.3,231.29,8.64859215]
[1738392629939,0.063,231.3,231.29,11.64859215]
[1738392630543,0.063,231.3,231.29,25.06044068]
[1738392631848,0.063,231.3,231.29,26.06044068]
[1738392633266,0.063,231.3,231.29,11.64859215]
[1738392638477,0.063,231.3,231.29,12.64859215]
[1738392638657,0.063,231.3,231.29,12.77408215]
[1738392638859,0.063,231.35,231.32,20.0]
[1738392639058,0.063,231.35,231.32,42.70859172]
[1738392640084,0.063,231.35,231.32,48.15708172]
[1738392641785,0.063,231.35,231.32,48.53355172]
[1738392641993,0.063,231.35,231.34,49.69105075]
[1738392642197,0.063,231.35,231.34,64.12740559]
[1738392642572,0.063,231.35,231.34,29.53303699]
[1738392642779,0.063,231.35,231.34,27.15656699]
[1738392643498,0.063,231.35,231.34,28.15656699]
[1738392644104,0.063,231.35,231.34,8.64859215]
[1738392650388,0.063,231.35,231.32,8.64859215]
[1738392650978,0.063,231.35,231.33,8.64859215]
[1738392651496,8.27459215,231.4,231.33,8.64859215]
[1738392653211,10.31109215,231.41,231.33,8.64859215]
[1738392653400,10.31109215,231.41,231.35,8.64859215]
[1738392653401,1.6625,231.41,231.35,8.64859215]
[1738392653574,1.6625,231.41,231.37,8.64859215]
[1738392654588,0.88385872,231.41,231.37,8.64859215]
[1738392654903,0.94685872,231.41,231.37,8.64859215]
[1738392657002,0.94685872,231.41,231.38,8.64859215]
[1738392657604,0.94685872,231.41,231.37,8.64859215]
[1738392659497,0.94685872,231.41,231.36,8.64859215]
[1738392660729,0.94685872,231.41,231.37,8.64859215]
[1738392661215,0.94685872,231.41,231.36,8.64859215]
[1738392661418,83.54685872,231.41,231.36,8.64859215]
[1738392663425,83.54685872,231.41,231.37,8.64859215]
[1738392666722,83.54685872,231.41,231.37,8.71159215]
[1738392668513,83.54685872,231.41,231.37,0.063]
[1738392671301,8.64859215,231.4,231.37,0.063]
[1738392671513,83.54685872,231.41,231.37,0.063]
[1738392671514,8.64859215,231.39,231.37,0.063]
[1738392671914,8.64859215,231.4,231.37,0.063]
[1738392673326,92.19545087,231.41,231.37,0.063]
[1738392675004,83.54685872,231.41,231.37,8.71159215]
[1738392676913,83.54685872,231.41,231.37,0.063]
[1738392688413,92.19545087,231.41,231.37,0.063]
[1738392689614,8.64859215,231.39,231.37,0.063]
[1738392690036,8.64859215,231.38,231.37,0.063]
[1738392690527,8.64859215,231.39,231.37,0.063]
[1738392691715,83.54685872,231.41,231.37,0.063]
[1738392694747,83.47142003,231.41,231.37,0.063]
[1738392696355,8.64859215,231.4,231.37,0.063]
[1738392698556,8.64859215,231.38,231.37,0.063]
[1738392707058,8.64859215,231.39,231.37,0.063]
[1738392709337,8.64859215,231.38,231.33,0.03]
[1738392709531,8.64859215,231.34,231.33,0.03]
[1738392716765,8.64859215,231.35,231.33,0.03]
[1738392718473,7.50810869,231.35,231.33,0.03]
[1738392723384,0.60697961,231.4,231.33,0.03]
[1738392723385,8.64859215,231.34,231.33,0.03]
[1738392724698,10.24649215,231.34,231.33,0.03]
[1738392725001,10.85347176,231.34,231.33,0.03]
[1738392726604,24.26532029,231.34,231.33,0.0001]
[1738392727114,13.41184853,231.33,231.26,0.03]
[1738392727283,0.60697961,231.32,231.26,0.03]
[1738392727596,8.64859215,231.27,231.26,0.03]
[1738392731470,8.64859215,231.29,231.26,0.03]
[1738392731671,8.64859215,231.31,231.26,0.03]
[1738392731906,8.64859215,231.32,231.26,0.03]
[1738392734712,8.64859215,231.3,231.26,0.03]
[1738392735801,82.6,231.29,231.26,0.03]
[1738392736105,82.6,231.28,231.26,0.03]
[1738392736311,91.24859215,231.28,231.26,0.03]
[1738392738514,91.24859215,231.28,231.18,8.60315345]
[1738392738710,8.64859215,231.25,231.18,8.60315345]
[1738392741008,8.64859215,231.25,231.15,5.839]
[1738392741009,8.64859215,231.25,231.16,28.64859215]
[1738392741622,82.6,231.24,231.16,28.64859215]
[1738392742616,82.6,231.24,231.18,8.64859215]
[1738392747529,82.6,231.23,231.18,8.64859215]
[1738392747718,82.6,231.22,231.18,8.64859215]
[1738392748813,82.6,231.22,231.18,8.71159215]
[1738392752517,82.6,231.22,231.2,8.64859215]